bitfinex/quotes_BTCUSD_20241123
["timestamp","ask_amount","ask_price","bid_price","bid_amount"]
[1732361037765,0.001,98079.0,98031.0,0.00101978]
[1732361037970,0.001,98079.0,98030.0,0.023]
[1732361038175,0.001,98079.0,98031.0,0.0150234]
[1732361038590,0.001,98079.0,98031.0,0.01400362]
[1732361039020,0.001,98079.0,98032.0,0.12881978]
[1732361039227,0.001,98079.0,98034.0,0.1278]
[1732361039442,0.001,98079.0,98033.0,0.00101978]
[1732361039443,0.001,98079.0,98035.0,0.01581847]
[1732361039645,0.001,98079.0,98037.0,0.1278]
[1732361039850,0.001,98079.0,98035.0,0.01581847]
[1732361039851,0.001,98079.0,98039.0,0.1278]
[1732361040053,0.001,98079.0,98041.0,0.1243]
[1732361040287,0.001,98079.0,98045.0,0.0484]
[1732361040501,0.001,98079.0,98046.0,0.0759]
[1732361040729,0.001,98079.0,98050.0,0.0484]
[1732361040945,0.001,98079.0,98051.0,0.0759]
[1732361041159,0.001,98079.0,98052.0,0.0484]
[1732361041398,0.001,98079.0,98053.0,0.0759]
[1732361041580,0.001,98079.0,98055.0,0.0484]
[1732361041799,0.081,98081.0,98057.0,0.0484]
[1732361042021,0.05966,98081.0,98057.0,0.0484]
[1732361042226,0.05966,98081.0,98059.0,0.0759]
[1732361042437,0.023,98097.0,98060.0,0.0484]
[1732361042643,0.10432373,98097.0,98060.0,0.05305218]
[1732361044182,0.00086,98079.0,98060.0,0.05305218]
[1732361044389,0.00086,98079.0,98062.0,0.0458]
[1732361044600,0.00086,98079.0,98063.0,0.00465113]
[1732361046076,0.00086,98079.0,98063.0,0.04595348]
[1732361048141,0.00086,98079.0,98064.0,0.0468]
[1732361048342,0.00086,98079.0,98035.0,0.023]
[1732361049415,0.049,98078.0,98035.0,0.023]
[1732361050031,0.0829,98077.0,98035.0,0.023]
[1732361051221,0.0829,98077.0,98039.0,0.0769]
[1732361051425,0.0829,98077.0,98046.0,0.0496]
[1732361051596,0.04755,98077.0,98046.0,0.0496]
[1732361051803,0.04755,98077.0,98048.0,0.0496]
[1732361052020,0.04755,98077.0,98049.0,0.0496]
[1732361053045,0.04079495,98077.0,98049.0,0.0496]
[1732361057241,0.00416495,98077.0,98049.0,0.0496]
[1732361057425,0.00416495,98077.0,98049.0,0.09006615]
[1732361057631,0.00416495,98077.0,98049.0,0.09178555]
[1732361059445,0.01659495,98078.0,98050.0,0.0496]
[1732361062026,0.01659495,98078.0,98051.0,0.0798]
[1732361062228,0.01659495,98078.0,98052.0,0.0466]
[1732361062458,0.0801,98077.0,98052.0,0.0466]
[1732361062665,0.06178535,98077.0,98052.0,0.0466]
[1732361068087,0.03486789,98077.0,98052.0,0.0466]
[1732361069674,0.03572769,98077.0,98052.0,0.0466]
[1732361070500,0.03572769,98077.0,98050.0,0.0774]
[1732361072024,0.02478204,98077.0,98051.0,0.0774]
[1732361072867,0.0475,98076.0,98051.0,0.0774]
[1732361073303,0.01395466,98091.0,98052.0,0.04961973]
[1732361073530,0.01309456,98091.0,98055.0,0.126]
[1732361073737,0.01309456,98091.0,98061.0,0.126]
[1732361074991,0.0789,98090.0,98061.0,0.126]
[1732361075875,0.0789,98090.0,98061.0,0.16688069]
[1732361078063,0.0475,98089.0,98061.0,0.16688069]
[1732361082624,0.0483598,98089.0,98061.0,0.16688069]
[1732361084331,0.0108098,98089.0,98061.0,0.16688069]
[1732361086109,0.0789,98090.0,98061.0,0.16688069]
[1732361089130,0.0496,98089.0,98061.0,0.16688069]
[1732361089375,0.0824,98088.0,98061.0,0.16688069]
[1732361089607,0.0496,98087.0,98061.0,0.16688069]
[1732361094938,0.0496,98087.0,98061.0,0.16860009]
[1732361099335,0.0496,98085.0,98061.0,0.16860009]
[1732361099757,0.0496,98083.0,98061.0,0.16860009]
[1732361101251,0.0496,98083.0,98061.0,0.09120009]
[1732361101473,0.047,98081.0,98061.0,0.09120009]
[1732361106489,0.04441636,98081.0,98061.0,0.09120009]
[1732361114929,0.04441636,98081.0,98020.0,0.15366925]
[1732361115186,0.0474,98079.0,98021.0,0.023]
[1732361115413,0.0474,98077.0,98021.0,0.023]
[1732361115635,0.0803,98076.0,98021.0,0.0636]
[1732361115855,0.0474,98075.0,98021.0,0.0636]
[1732361117072,0.04325786,98075.0,98021.0,0.0636]
[1732361117326,0.0803,98074.0,98022.0,0.048]
[1732361117555,0.0803,98074.0,98024.0,0.048]
[1732361117789,0.0803,98074.0,98025.0,0.023]
[1732361118017,0.0803,98074.0,98026.0,0.048]
[1732361118267,0.0803,98074.0,98028.0,0.023]
[1732361118496,0.0803,98074.0,98034.0,0.1256]
[1732361118734,0.0803,98074.0,98037.0,0.048]
[1732361118959,0.0803,98074.0,98038.0,0.023]
[1732361119178,0.0803,98074.0,98039.0,0.048]
[1732361120151,0.0474,98073.0,98039.0,0.048]
[1732361120402,0.0456,98072.0,98039.0,0.048]
[1732361120630,0.0456,98070.0,98041.0,0.0477]
[1732361121508,0.0456,98070.0,98042.0,0.023]
[1732361124551,0.0456,98068.0,98022.0,0.023]
[1732361124736,0.0456,98066.0,98022.0,0.023]
[1732361125014,0.0456,98064.0,98022.0,0.023]
[1732361126129,0.0796,98063.0,98023.0,0.0485]
[1732361126565,0.0796,98063.0,98026.0,0.023]
[1732361126773,0.0796,98063.0,98027.0,0.0485]
[1732361126996,0.0796,98063.0,98028.0,0.0485]
[1732361127213,0.0796,98063.0,98029.0,0.0715]
[1732361127603,0.0796,98063.0,98030.0,0.0831]
[1732361129110,0.0451,98062.0,98030.0,0.0831]
[1732361129358,0.0451,98060.0,98030.0,0.0831]
[1732361129569,0.1247,98060.0,98030.0,0.0831]
[1732361129797,0.0796,98060.0,98031.0,0.0485]
[1732361129996,0.0008598,98075.0,98031.0,0.0485]
[1732361132848,0.0451,98074.0,98031.0,0.0485]
[1732361133067,0.0796,98073.0,98031.0,0.0485]
[1732361133367,0.0796,98071.0,98031.0,0.0485]
[1732361133571,0.0451,98070.0,98031.0,0.0485]
[1732361133785,0.0451,98068.0,98031.0,0.0485]
[1732361134007,0.0451,98066.0,98031.0,0.0485]
[1732361134222,0.0796,98063.0,98031.0,0.0485]
[1732361134434,0.0796,98061.0,98031.0,0.0424329]
[1732361134650,0.0451,98060.0,98031.0,0.0424329]
[1732361135742,0.0451,98060.0,98031.0,0.08376359]
[1732361136831,0.03984402,98060.0,98031.0,0.08376359]
[1732361137507,0.0796,98059.0,98031.0,0.08376359]
[1732361139904,0.0451,98058.0,98031.0,0.08376359]
[1732361140401,0.0796,98059.0,98031.0,0.08376359]
[1732361140402,0.0796,98059.0,98032.0,0.0491]
[1732361141306,0.0769,98059.0,98032.0,0.0491]
[1732361141520,0.0769,98059.0,98033.0,0.0491]
[1732361141947,0.0464,98058.0,98010.0,0.023]
[1732361142158,0.0804,98057.0,98011.0,0.05076786]
[1732361142367,0.0464,98058.0,98012.0,0.0791]
[1732361142607,0.0464,98058.0,98014.0,0.0791]
[1732361142821,0.0464,98058.0,98016.0,0.0791]
[1732361143068,0.0464,98058.0,98017.0,0.023]
[1732361143282,0.0464,98058.0,98019.0,0.023]
[1732361143524,0.0464,98058.0,98020.0,0.0791]
[1732361144370,0.03184618,98058.0,98021.0,0.0487]
[1732361144578,0.03184618,98058.0,98022.0,0.0487]
[1732361144844,0.03184618,98058.0,98024.0,0.0487]
[1732361145537,0.12671714,98090.0,98028.0,0.0788]
[1732361145783,0.12650727,98090.0,98030.0,0.0788]
[1732361146002,0.12650727,98090.0,98036.0,0.0477]
[1732361146243,0.0008599,98060.0,98039.0,0.0788]
[1732361146472,0.0008599,98060.0,98040.0,0.04871961]
[1732361147850,1e-08,98072.0,98040.0,0.04871961]
[1732361148536,0.0797,98071.0,98040.0,0.04871961]
[1732361148978,1e-08,98072.0,98044.0,0.0477]
[1732361149204,1e-08,98072.0,98046.0,0.0477]
[1732361149417,1e-08,98072.0,98048.0,0.0477]
[1732361149654,1e-08,98072.0,98049.0,0.04871961]
[1732361150491,1e-08,98072.0,98051.0,0.0477]
[1732361150697,1e-08,98072.0,98052.0,0.00101961]
[1732361152287,1e-08,98072.0,98051.0,0.0477]
[1732361152977,1e-08,98072.0,98004.0,0.002]
[1732361153191,1e-08,98072.0,98017.0,0.30523044]
[1732361154045,0.07144601,98074.0,98017.0,0.30523044]
[1732361154251,0.07144601,98074.0,98020.0,0.0788]
[1732361154458,0.07144601,98074.0,98022.0,0.0788]
[1732361154659,0.07144601,98074.0,98023.0,0.0477]
[1732361154869,0.07144601,98074.0,98029.0,0.1265]
[1732361155082,0.07144601,98074.0,98032.0,0.0788]
[1732361155291,0.07144601,98074.0,98034.0,0.0788]
[1732361155502,0.07144601,98074.0,98036.0,0.0788]
[1732361155714,0.07144601,98074.0,98037.0,0.0477]
[1732361157251,0.0494,98073.0,98037.0,0.0477]
[1732361157669,0.2,98090.0,98017.0,0.34696497]
[1732361157670,0.0797,98070.0,98031.0,0.0477]
[1732361157882,0.0797,98068.0,98031.0,0.0477]
[1732361158110,0.25481128,98090.0,98031.0,0.0477]
[1732361158111,0.0797,98066.0,98031.0,0.0477]
[1732361158312,0.0494,98065.0,98031.0,0.0477]
[1732361158538,0.0494,98063.0,98031.0,0.0477]
[1732361158812,0.02548113,98089.0,98031.0,0.0477]
[1732361158813,0.0494,98061.0,98031.0,0.0477]
[1732361159014,0.0494,98059.0,98031.0,0.0477]
[1732361159261,0.0797,98058.0,98031.0,0.0477]
[1732361160144,0.0797,98058.0,98032.0,0.00101974]
[1732361160824,0.065,98058.0,98032.0,0.00101974]
[1732361161046,0.06231615,98058.0,98032.0,0.00101974]
[1732361161262,0.06231615,98058.0,98032.0,0.043232]
[1732361163031,0.04729616,98058.0,98032.0,0.043232]
[1732361163244,0.03935617,98058.0,98032.0,0.043232]
[1732361163673,0.02882617,98058.0,98032.0,0.043232]
[1732361166497,0.02882617,98058.0,98014.0,0.0500293]
[1732361166702,0.02882617,98058.0,98031.0,0.04136695]
[1732361166926,0.02882617,98058.0,98032.0,0.00101974]
[1732361167134,0.01970251,98058.0,98032.0,0.00101974]
[1732361167704,0.01128153,98058.0,98030.0,0.00101973]
[1732361167926,0.02546678,98059.0,98031.0,0.00101973]
[1732361168131,0.02546678,98059.0,98031.0,0.0467]
[1732361168354,0.02546678,98059.0,98032.0,0.00101966]
[1732361168557,0.02546678,98059.0,98033.0,0.00101968]
[1732361168759,0.02546678,98059.0,98031.0,0.0467]
[1732361168760,0.02401974,98088.0,98032.0,0.00101968]
[1732361168944,0.02401974,98088.0,98031.0,0.0467]
[1732361169998,0.00101974,98088.0,98031.0,0.0467]
[1732361170402,0.02401974,98088.0,98031.0,0.0467]
[1732361171092,0.023,98086.0,98031.0,0.0467]
[1732361171349,0.023,98084.0,98031.0,0.0467]
[1732361171607,0.023,98081.0,98031.0,0.0467]
[1732361171837,0.0457,98076.0,98031.0,0.0467]
[1732361172119,0.0796,98074.0,98031.0,0.0467]
[1732361172355,0.0796,98072.0,98031.0,0.0467]
[1732361172584,0.0796,98072.0,98031.0,0.0484198]
[1732361173027,0.0796,98072.0,98032.0,0.0467]
[1732361175138,0.0457,98071.0,98032.0,0.0467]
[1732361175342,0.0796,98070.0,98032.0,0.0467]
[1732361175801,0.0796,98070.0,98034.0,0.0467]
[1732361176906,0.0796,98070.0,98035.0,0.0467]
[1732361178698,0.0457,98067.0,98011.0,0.05094617]
[1732361178922,0.07827067,98072.0,98011.0,0.05094617]
[1732361178923,0.0796,98065.0,98012.0,0.0178]
[1732361179141,0.0796,98063.0,98013.0,0.023]
[1732361179806,0.0796,98063.0,98014.0,0.05090636]
[1732361180232,0.04326,98063.0,98015.0,0.0812]
[1732361180437,0.04326,98063.0,98016.0,0.0812]
[1732361181610,0.047,98062.0,98017.0,0.049]
[1732361181855,0.047,98062.0,98021.0,0.0812]
[1732361182077,0.047,98062.0,98023.0,0.0812]
[1732361182294,0.047,98062.0,98024.0,0.049]
[1732361182723,0.01425735,98063.0,98027.0,0.0812]
[1732361182937,0.01425735,98063.0,98028.0,0.049]
[1732361184745,0.0225851,98080.0,98031.0,0.0812]
[1732361184965,0.0225851,98080.0,98034.0,0.049]
[1732361185803,0.0463,98079.0,98034.0,0.049]
[1732361186481,0.00101974,98088.0,98034.0,0.049]
[1732361186482,0.0225851,98083.0,98034.0,0.049]
[1732361186700,0.0225851,98083.0,98036.0,0.0464]
[1732361186922,0.0225851,98083.0,98037.0,0.0464]
[1732361187593,0.0766,98082.0,98037.0,0.0464]
[1732361188897,0.0766,98082.0,98038.0,0.0464]
[1732361189617,0.0463,98081.0,98038.0,0.0464]
[1732361189845,0.0463,98081.0,98039.0,0.0464]
[1732361191170,0.01138897,98081.0,98039.0,0.0464]
[1732361191388,0.01138897,98081.0,98041.0,0.0464]
[1732361191592,0.0225851,98088.0,98041.0,0.0464]
[1732361192639,0.0766,98087.0,98041.0,0.0464]
[1732361194333,0.0225851,98088.0,98041.0,0.0464]
[1732361194334,0.0766,98085.0,98041.0,0.0464]
[1732361194547,0.0766,98083.0,98041.0,0.0464]
[1732361194782,0.0225851,98088.0,98040.0,0.0827]
[1732361194783,0.0766,98081.0,98042.0,0.0464]
[1732361195204,0.0766,98079.0,98042.0,0.0464]
[1732361196256,0.0766,98079.0,98044.0,0.0464]
[1732361196963,0.0463,98078.0,98044.0,0.0464]
[1732361197186,0.0766,98077.0,98044.0,0.0464]
[1732361197438,0.0463,98076.0,98044.0,0.0464]
[1732361197656,0.0766,98075.0,98044.0,0.0464]
[1732361199045,0.0766,98075.0,98044.0,0.0873313]
[1732361200085,0.2,98090.0,98044.0,0.0873313]
[1732361200086,0.0463,98074.0,98044.0,0.0873313]
[1732361200299,0.0463,98072.0,98044.0,0.0873313]
[1732361200456,0.0491,98070.0,98044.0,0.0873313]
[1732361200657,0.0824,98069.0,98044.0,0.0873313]
[1732361201896,0.01982142,98070.0,98045.0,0.00101961]
[1732361202100,0.0225851,98084.0,98045.0,0.00101961]
[1732361202101,0.0225851,98084.0,98047.0,0.0495]
[1732361202354,0.0225851,98084.0,98049.0,0.0495]
[1732361202600,0.0225851,98084.0,98050.0,0.05051954]
[1732361202991,0.0824,98082.0,98024.0,0.05066601]
[1732361203176,0.03925904,98084.0,98020.0,0.16074096]
[1732361203177,0.0824,98080.0,98021.0,0.05009612]
[1732361203385,0.0824,98078.0,98021.0,0.05009612]
[1732361203643,0.0824,98076.0,98021.0,0.05009612]
[1732361203930,0.0824,98076.0,98027.0,0.05042314]
[1732361204337,0.0824,98076.0,98029.0,0.05070589]
[1732361205405,0.0824,98076.0,98031.0,0.05029082]
[1732361205614,0.0824,98076.0,98030.0,0.023]
[1732361205996,0.0824,98076.0,98031.0,0.0829]
[1732361206272,0.0824,98076.0,98034.0,0.0829]
[1732361206484,0.0824,98076.0,98036.0,0.0482]
[1732361207930,0.0824,98076.0,98036.0,0.04784303]
[1732361208153,0.0824,98076.0,98037.0,0.05056715]
[1732361209414,0.0824,98076.0,98036.0,0.05018271]
[1732361210623,0.0824,98076.0,98036.0,0.09203406]
[1732361210824,0.0824,98076.0,98037.0,0.049]
[1732361211039,0.0824,98076.0,98038.0,0.0777]
[1732361211262,0.0824,98076.0,98039.0,0.049]
[1732361213022,0.0474,98075.0,98036.0,0.05018271]
[1732361213230,0.0474,98075.0,98035.0,0.0017194]
[1732361213231,0.16705904,98065.0,98037.0,0.00519021]
[1732361213425,0.0804,98057.0,98035.0,0.0017194]
[1732361213668,0.1278,98056.0,98035.0,0.0017194]
[1732361213939,0.0804,98055.0,98035.0,0.0017194]
[1732361214152,0.0804,98055.0,98036.0,0.0005103]
[1732361230581,0.0804,98055.0,98036.0,0.04109355]
[1732361230794,0.0804,98055.0,98036.0,0.0005103]
[1732361233220,0.0804,98055.0,98036.0,0.0022305]
[1732361233433,0.0812601,98055.0,98036.0,0.0022305]
[1732361234119,0.0767936,98055.0,98036.0,0.0022305]
[1732361234534,0.0767936,98055.0,98036.0,0.04419783]
[1732361234757,0.0767936,98055.0,98036.0,0.0022305]
[1732361234969,0.0767936,98055.0,98009.0,0.05034668]
[1732361236740,0.0767936,98055.0,98003.0,0.023]
[1732361237442,0.0767936,98055.0,97995.0,0.05073209]
[1732361237659,0.0769,98053.0,97995.0,0.05073209]
[1732361238105,0.0769,98053.0,97997.0,0.0494]
[1732361238319,0.0769,98051.0,98001.0,0.0494]
[1732361238533,0.0769,98051.0,98002.0,0.0494]
[1732361238753,0.0769,98051.0,98004.0,0.0494]
[1732361238990,0.0769,98051.0,98005.0,0.05009034]
[1732361239218,0.0769,98051.0,98006.0,0.0494]
[1732361239459,0.0769,98051.0,98009.0,0.0494]
[1732361240105,0.0769,98051.0,98010.0,0.05085159]
[1732361240321,0.01153219,98073.0,98016.0,0.05000704]
[1732361240536,0.00127462,98072.0,98017.0,0.05046361]
[1732361240782,0.00127462,98072.0,98018.0,0.0457]
[1732361240992,0.00127462,98072.0,98018.0,0.05050393]
[1732361241199,0.00127462,98072.0,98019.0,0.0457]
[1732361241882,0.00127462,98072.0,98019.0,0.09596348]
[1732361242106,0.00127462,98072.0,98020.0,0.0457]
[1732361243432,0.023,98066.0,98020.0,0.0457]
[1732361243648,0.01153219,98073.0,98019.0,0.05026348]
[1732361243649,0.082,98064.0,98021.0,0.0457]
[1732361244064,0.0472,98063.0,98021.0,0.0457]
[1732361244279,0.0802,98062.0,98020.0,0.0484]
[1732361244941,0.0802,98060.0,98020.0,0.0484]
[1732361247126,0.0793,98058.0,98020.0,0.0484]
[1732361250404,0.0793,98058.0,98020.0,0.58475056]
[1732361250872,0.0481,98057.0,98020.0,0.58475056]
[1732361251181,0.0793,98056.0,98020.0,0.58475056]
[1732361251405,0.0793,98056.0,98021.0,0.53635056]
[1732361252369,0.0793,98056.0,98022.0,0.53635056]
[1732361252849,0.0793,98056.0,98024.0,0.53635056]
[1732361253094,0.0793,98056.0,98025.0,0.53635056]
[1732361253320,0.0793,98056.0,98026.0,0.53635056]
[1732361254486,0.0793,98056.0,98027.0,0.53635056]
[1732361255615,0.0481,98055.0,98026.0,0.53635056]
[1732361255833,0.0793,98054.0,98007.0,0.05043027]
[1732361256094,0.0793,98052.0,98007.0,0.05043027]
[1732361256298,0.0481,98051.0,98007.0,0.05043027]
[1732361256534,0.00127468,98072.0,98007.0,0.05043027]
[1732361256535,0.0481,98049.0,98007.0,0.05043027]
[1732361256760,0.0793,98046.0,98007.0,0.05043027]
[1732361257632,0.0793,98044.0,98007.0,0.05043027]
[1732361257855,0.2,98067.0,98007.0,0.05043027]
[1732361257856,0.1274,98041.0,98007.0,0.05043027]
[1732361258090,0.0793,98035.0,98007.0,0.05043027]
[1732361258530,0.0793,98033.0,98007.0,0.05043027]
[1732361259810,0.0793,98033.0,98008.0,0.040605]
[1732361260498,0.07294,98033.0,98008.0,0.040605]
[1732361260714,0.07294,98033.0,98009.0,0.05197516]
[1732361260934,0.06658,98033.0,98009.0,0.05197516]
[1732361263169,0.0481,98034.0,98011.0,0.05129886]
[1732361263383,0.01185,98034.0,98011.0,0.05129886]
[1732361263600,0.2012749,98064.0,98011.0,0.05129886]
[1732361263816,0.023,98063.0,98012.0,0.0477]
[1732361264017,0.00127481,98062.0,98012.0,0.0477]
[1732361264217,0.00127481,98061.0,98012.0,0.0477]
[1732361264559,0.00127481,98062.0,98012.0,0.0477]
[1732361265248,0.00127481,98062.0,98013.0,0.05011446]
[1732361266319,0.0777,98059.0,98014.0,0.0496]
[1732361266534,0.0777,98055.0,98014.0,0.0496]
[1732361266669,0.0777,98051.0,98014.0,0.0496]
[1732361266904,0.0456,98050.0,98015.0,0.05075264]
[1732361267129,0.0777,98049.0,98015.0,0.05075264]
[1732361268514,0.0777,98049.0,98016.0,0.0496]
[1732361269559,0.0777,98049.0,98017.0,0.05094107]
[1732361271339,0.0777,98049.0,98018.0,0.0496]
[1732361271777,0.0777,98049.0,98019.0,0.05036468]
[1732361272637,0.0777,98049.0,98020.0,0.0496]
[1732361273260,0.0785601,98049.0,98020.0,0.0496]
[1732361273469,0.0785601,98049.0,98021.0,0.0795]
[1732361273890,0.0785601,98049.0,98022.0,0.53635056]
[1732361276068,0.0785601,98049.0,98023.0,0.0452]
[1732361285276,0.023,98048.0,98023.0,0.0452]
[1732361285698,0.023,98048.0,98023.0,0.0469202]
[1732361286336,0.0785601,98049.0,98023.0,0.0469202]
[1732361286566,0.0785601,98049.0,98024.0,0.0495]
[1732361288340,0.023,98048.0,98024.0,0.0495]
[1732361292932,0.023,98048.0,98025.0,0.1311]
[1732361293154,0.023,98048.0,98026.0,0.0495]
[1732361298257,0.0785601,98049.0,98026.0,0.0495]
[1732361298926,0.0785601,98049.0,98018.0,0.05017457]
[1732361299141,0.0785601,98049.0,98016.0,0.05077747]
[1732361302055,0.0785601,98049.0,98017.0,0.0776]
[1732361302289,0.0785601,98049.0,98019.0,0.0464]
[1732361303586,0.06251971,98049.0,98019.0,0.0464]
[1732361306744,0.05989504,98049.0,98019.0,0.0464]
[1732361307493,0.05989504,98049.0,98020.0,0.048]
[1732361313685,0.0469,98048.0,98020.0,0.048]
[1732361313914,0.0469,98048.0,98009.0,0.05090338]
[1732361314135,0.083,98047.0,98009.0,0.05090338]
[1732361314351,0.083,98047.0,98001.0,0.05005221]
[1732361315001,0.083,98045.0,98001.0,0.05005221]
[1732361315893,0.083,98043.0,98001.0,0.05005221]
[1732361316125,0.083,98043.0,98001.0,0.09041114]
[1732361317009,0.083,98043.0,98005.0,0.048]
[1732361319435,0.0008601,98049.0,98006.0,0.0507882]
[1732361319674,0.083,98036.0,98006.0,0.0507882]
[1732361319884,0.083,98036.0,98001.0,0.04035893]
[1732361319885,0.083,98034.0,98001.0,0.05155205]
[1732361320131,0.083,98032.0,98001.0,0.05155205]
[1732361320376,0.083,98028.0,98001.0,0.05155205]
[1732361321506,0.083,98028.0,98005.0,0.0008602]
[1732361321752,0.083,98028.0,98006.0,0.05126351]
[1732361322201,0.0787,98026.0,98006.0,0.05126351]
[1732361326371,0.04331,98026.0,98006.0,0.05126351]
[1732361328375,0.0467,98025.0,98005.0,0.0008602]
[1732361328589,0.0467,98025.0,98006.0,0.05126351]
[1732361329030,0.0467,98025.0,98006.0,0.09187451]
[1732361329472,0.0467,98023.0,98006.0,0.09187451]
[1732361329702,0.0752,98022.0,98006.0,0.09187451]
[1732361333927,0.0752,98022.0,98006.0,0.09273451]
[1732361335012,0.0752,98022.0,98008.0,0.0511433]
[1732361335225,0.0467,98028.0,98008.0,0.0511433]
[1732361335226,0.1219,98028.0,98008.0,0.0511433]
[1732361335666,0.1219,98028.0,98007.0,0.05128189]
[1732361336346,0.1219,98028.0,98008.0,0.53810759]
[1732361337633,0.1219,98028.0,98007.0,0.05128189]
[1732361340982,0.1219,98028.0,98008.0,0.023]
[1732361342541,0.1219,98028.0,98010.0,0.023]
[1732361344104,0.1219,98028.0,98012.0,0.023]
[1732361344326,0.1219,98028.0,98013.0,0.05193166]
[1732361345453,0.1236204,98028.0,98014.0,0.023]
[1732361345675,0.1236204,98028.0,98015.0,0.05143981]
[1732361348029,0.09057692,98028.0,98015.0,0.05143981]
[1732361348258,0.08494505,98028.0,98007.0,0.023]
[1732361348589,0.08494505,98028.0,98004.0,0.023]
[1732361349321,0.0769204,98028.0,98004.0,0.023]
[1732361349538,0.0805,98026.0,98004.0,0.023]
[1732361349979,0.0805,98026.0,98005.0,0.05130237]
[1732361351608,0.0754,98024.0,98005.0,0.05130237]
[1732361355659,0.0754,98024.0,98005.0,0.05135361]
[1732361355894,0.0754,98024.0,98005.0,0.05181109]
[1732361357228,0.0754,98024.0,98005.0,0.05267129]
[1732361357447,0.0754,98024.0,97986.0,0.05102107]
[1732361357886,0.0478,98023.0,97970.0,0.05143851]
[1732361358059,0.0754,98022.0,97970.0,0.05143851]
[1732361358537,0.0754,98020.0,97970.0,0.05143851]
[1732361359508,0.0754,98018.0,97970.0,0.05143851]
[1732361359913,0.0754,98018.0,97971.0,0.023]
[1732361360649,0.0484,98017.0,97974.0,0.0484]
[1732361360868,0.0798,98016.0,97976.0,0.0484]
[1732361361086,0.0798,98016.0,97974.0,0.0484]
[1732361361303,0.0798,98016.0,97969.0,0.33268621]
[1732361361304,0.0798,98016.0,97979.0,0.0484]
[1732361361946,0.0798,98016.0,97980.0,0.023]
[1732361362154,0.0798,98016.0,97983.0,0.0484]
[1732361362371,0.1282,98015.0,97984.0,0.023]
[1732361362604,0.1282,98015.0,97983.0,0.0484]
[1732361362605,0.0798,98014.0,97988.0,0.023]
[1732361362864,0.0484,98013.0,97988.0,0.023]
[1732361363084,0.0798,98012.0,97988.0,0.023]
[1732361363308,0.0017204,98028.0,97988.0,0.023]
[1732361363531,0.0017204,98028.0,97990.0,0.023]
[1732361364215,0.0017204,98028.0,97992.0,0.023]
[1732361364864,0.0017204,98028.0,97993.0,0.05169156]
[1732361365106,0.0017204,98028.0,97994.0,0.023]
[1732361366471,0.0789,98025.0,97994.0,0.023]
[1732361366687,0.0459,98024.0,97994.0,0.023]
[1732361366912,0.0789,98023.0,97995.0,0.05187218]
[1732361367167,0.0017204,98028.0,97995.0,0.05187218]
[1732361367168,0.0789,98021.0,97995.0,0.05187218]
[1732361367393,0.0017204,98028.0,97995.0,0.05187218]
[1732361367394,0.0459,98020.0,97995.0,0.05187218]
[1732361367635,0.0789,98016.0,97995.0,0.05187218]
[1732361368965,0.09123732,98116.0,97997.0,0.05044402]
[1732361369178,0.00127499,98050.0,97998.0,0.0705]
[1732361369406,0.00127499,98049.0,97999.0,0.05008665]
[1732361369644,0.00127499,98050.0,97999.0,0.05008665]
[1732361369874,0.00127499,98050.0,98000.0,0.023]
[1732361371921,0.0789,98046.0,98002.0,0.023]
[1732361372155,0.0789,98044.0,98002.0,0.023]
[1732361372383,0.0789,98042.0,98002.0,0.023]
[1732361372607,0.0789,98040.0,98003.0,0.0501399]
[1732361372851,0.0789,98034.0,98003.0,0.0501399]
[1732361373078,0.001275,98049.0,98003.0,0.0501399]
[1732361373079,0.0789,98032.0,98003.0,0.0501399]
[1732361373310,0.0789,98030.0,98003.0,0.0501399]
[1732361373548,0.1248,98029.0,98003.0,0.0501399]
[1732361375470,0.0827,98028.0,98003.0,0.0501399]
[1732361375685,0.0492,98027.0,98003.0,0.0501399]
[1732361375898,0.0827,98026.0,98003.0,0.0501399]
[1732361377421,0.0827,98026.0,98004.0,0.023]
[1732361377651,0.0827,98026.0,98006.0,0.023]
[1732361377863,0.0827,98026.0,98004.0,0.023]
[1732361378581,0.0827,98026.0,98006.0,0.023]
[1732361378796,0.0827,98026.0,98011.0,0.53775649]
[1732361379027,0.0827,98026.0,98016.0,0.0513659]
[1732361379276,0.0827,98026.0,98016.0,0.58912239]
[1732361380417,0.0827,98026.0,98016.0,0.0513659]
[1732361380887,0.07728204,98026.0,98016.0,0.0513659]
[1732361381140,0.07900344,98026.0,98008.0,0.023]
[1732361381850,0.07900344,98026.0,98009.0,0.05188239]
[1732361382082,0.07900344,98026.0,98010.0,0.023]
[1732361382537,0.07900344,98026.0,98009.0,0.05188239]
[1732361382770,0.0487,98025.0,98004.0,0.0514315]
[1732361383927,0.0815,98024.0,98006.0,0.05158883]
[1732361384142,0.0815,98024.0,98007.0,0.00084276]
[1732361384818,0.0815,98024.0,98008.0,0.05101522]
[1732361385045,0.0815,98024.0,98004.0,0.0514315]
[1732361386207,0.0815,98024.0,98002.0,0.0510685]
[1732361386417,0.0815,98024.0,98004.0,0.05115659]
[1732361388373,0.0815,98024.0,98005.0,0.023]
[1732361388591,0.0815,98024.0,98009.0,0.023]
[1732361389033,0.0815,98024.0,98010.0,0.05122545]
[1732361389960,0.07695733,98024.0,98010.0,0.05122545]
[1732361399969,0.07695733,98024.0,98013.0,0.53836927]
[1732361400192,0.07695733,98024.0,98014.0,0.53836927]
[1732361401289,0.07695733,98024.0,98015.0,0.05178688]
[1732361401544,0.07695733,98024.0,98007.0,0.0518374]
[1732361402198,0.0462,98023.0,98007.0,0.0518374]
[1732361403672,0.0017214,98026.0,98007.0,0.0518374]
[1732361406058,0.0017208,98024.0,98007.0,0.0518374]
[1732361406797,0.0829208,98024.0,98007.0,0.0518374]
[1732361410708,0.0812,98022.0,98004.0,0.05136393]
[1732361418261,0.0812,98022.0,98004.0,0.05222423]
[1732361418933,0.07571712,98022.0,98004.0,0.05222423]